[Event "New York Summer IM-C 2022"]
[Site "New York"]
[Date "2022.07.08"]
[Round "2.3"]
[White "Rozman, Levy"]
[Black "Adewumi, Tanitoluwa"]
[Result "0-1"]
[ECO "B44"]
[WhiteElo "2333"]
[BlackElo "2309"]
[Annotator "RC"]
[PlyCount "72"]
[EventDate "2022.07.08"]
[EventType "tourn"]
[EventCountry "USA"]
[SourceTitle "playchess.com"]
[Source "ChessBase"]
[SourceQuality "1"]
[TimeControl "5400+30"]

1. e4 {[%emt 1:31:00]} c5 {[%emt 1:31:00]} 2. Nf3 {[%emt 0:00:30]} e6 {[%emt 0:00:30]} 3. d4 {[%emt 0:00:30]} cxd4 {[%emt 0:00:30]} 4. Nxd4 {[%emt 0:00:30]} Nc6 {[%emt 0:00:30]} 5. Bf4 {[%emt 0:00:30]} d6 {[%emt 0:00:30]} 6. Nxc6 {[%emt 0:00:30]} bxc6 {[%emt 0:00:30]} 7. c4 {[%emt 0:00:30]} Rb8 {[%emt 0:00:30]} 8. Qc2 {[%emt 0:00:30]} Qf6 {[%emt 0:00:30]} 9. Bc1 {[%emt 0:00:30]} Ne7 {[%emt 0:00:30]} 10. Nc3 {[%emt 0:00:30]} c5 {[%emt 0:00:30]} 11. Be3 {[%emt 0:00:30]} Nc6 12. O-O-O {[%emt 0:00:30]} Bd7 {[%emt 0:01:00]} 13. Nb5 Nb4 {[%emt 0:00:30]} 14. Qb1 {[%emt 0:01:00]} Rb6 {[%emt 0:00:30]} 15. h4 {[%emt 0:00:30]} Be7 {[%emt 0:00:30]} 16. a3 {[%emt 0:00:30]} Na6 {[%emt 0:00:30]} 17. Qc2 {[%emt 0:00:30]} h5 {[%emt 0:00:30]} 18. Rh3 {[%emt 0:00:30]} g6 {[%emt 0:00:30]} 19. Bg5 {[%emt 0:00:30]} Qe5 {[%emt 0:00:30]} 20. Bd2 {[%emt 0:00:30]} O-O {[%emt 0:00:30]} 21. Ba5 {[%emt 0:00:30]} Rb7 {[%emt 0:00:30]} 22. g3 {[%emt 0:00:30]} Qg7 {[%emt 0:00:30]} 23. Bc3 {[%emt 0:00:30]} Qh6+ {[%emt 0:00:30]} 24. Bd2 {[%emt 0:00:30]} Qg7 {[%emt 0:00:30]} 25. f4 {[%emt 0:00:30]} d5 {[%emt 0:00:30]} 26. Bc3 {[%emt 0:00:30]} d4 {[%emt 0:00:30]} 27. Bd2 {[%emt 0:00:30]} Nb8 {[%emt 0:00:30]} 28. e5 {[%emt 0:00:30]} a6 {[%emt 0:00:30]} 29. Nd6 {[%emt 0:00:30]} Bxd6 {[%emt 0:00:30]} 30. exd6 {[%emt 0:00:30]} e5 {[%emt 0:00:30]} 31. Rh2 {[%emt 0:00:30]} Bf5 {[%emt 0:00:30]} 32. Bd3 {[%emt 0:00:30]} e4 {[%emt 0:00:30]} 33. Bxe4 {[%emt 0:00:30]} d3 {[%emt 0:00:30]} 34. Bxd3 {[%emt 0:00:30]} Bxd3 {[%emt 0:00:30]} 35. Qc3 {[%emt 0:00:30]} Qxc3+ {[%emt 0:00:30]} 36. Bxc3 {[%emt 0:00:30]} Bxc4 {[%emt 0:00:30]} 0-1

[Event "New York Summer IM-C 2022"]
[Site "New York"]
[Date "2022.07.08"]
[Round "2.4"]
[White "Poliannikov, Danila"]
[Black "Hardaway, Brewington"]
[Result "1/2-1/2"]
[ECO "C42"]
[WhiteElo "2309"]
[BlackElo "2175"]
[Annotator "RC"]
[PlyCount "103"]
[EventDate "2022.07.08"]
[EventType "tourn"]
[EventCountry "USA"]
[SourceTitle "playchess.com"]
[Source "ChessBase"]
[SourceQuality "1"]
[TimeControl "5400+30"]

1. e4 {[%emt 0:00:02]} e5 {[%emt 0:00:04]} 2. Nf3 {[%emt 0:00:03]} Nf6 {[%emt 0:00:03]} 3. Nxe5 {[%emt 0:00:15]} d6 {[%emt 0:00:01]} 4. Nf3 {[%emt 0:00:07]} Nxe4 {[%emt 0:00:04]} 5. Nc3 {[%emt 0:00:02]} Nxc3 {[%emt 0:00:06]} 6. dxc3 {[%emt 0:00:03]} Be7 {[%emt 0:00:06]} 7. Be3 {[%emt 0:00:43]} Nd7 {[%emt 0:00:05]} 8. Qd2 {[%emt 0:00:34]} O-O {[%emt 0:00:12]} 9. O-O-O {[%emt 0:00:41]} c6 {[%emt 1:34:19]} 10. Bd3 {[%emt 0:43:11]} d5 {[%emt 0:00:30]} 11. Rhe1 {[%emt 0:07:46]} Nc5 {[%emt 0:00:00]} 12. Nd4 {[%emt 0:03:40]} Bf6 {[%emt 0:00:00]} 13. f3 {[%emt 0:06:43]} a5 {[%emt 0:00:00]} 14. Bf1 {[%emt 0:01:57]} Ne6 {[%emt 0:00:00]} 15. Kb1 {[%emt 0:07:23]} Bd7 {[%emt 0:00:00]} 16. c4 {[%emt 0:06:04]} Nc7 {[%emt 0:00:00]} 17. a3 {[%emt 0:10:03]} b6 {[%emt 0:00:00]} 18. Bf4 {[%emt 0:02:35]} c5 {[%emt 0:00:00]} 19. Nb3 {[%emt 0:00:12]} d4 {[%emt 0:00:00]} 20. Bd3 {[%emt 0:01:11]} Ne6 {[%emt 0:00:00]} 21. Bg3 {[%emt 0:00:21]} g6 {[%emt 0:00:00]} 22. Be4 {[%emt 0:00:31]} Ra7 {[%emt 0:00:00]} 23. Bd5 {[%emt 0:02:10]} Ng7 {[%emt 0:00:00]} 24. Bd6 {[%emt 0:03:36]} Re8 {[%emt 0:00:00]} 25. g4 {[%emt 0:01:27]} Be6 {[%emt 0:00:00]} 26. Bxe6 {[%emt 0:00:33]} Qxd6 {[%emt 0:00:00]} 27. Bd5 {[%emt 0:00:28]} Be5 {[%emt 0:00:00]} 28. Re4 {[%emt 0:02:09]} Rae7 {[%emt 0:00:00]} 29. f4 {[%emt 0:00:00]} Bf6 {[%emt 0:00:00]} 30. Rxe7 {[%emt 0:00:00]} Bxe7 {[%emt 0:00:00]} 31. f5 {[%emt 0:00:25]} g5 {[%emt 0:02:26]} 32. Re1 {[%emt 0:00:44]} Bf6 {[%emt 0:00:27]} 33. Rxe8+ {[%emt 0:00:05]} Nxe8 {[%emt 0:00:03]} 34. Qe2 {[%emt 0:00:07]} Qe5 {[%emt 0:00:11]} 35. Qxe5 {[%emt 0:00:20]} Bxe5 {[%emt 0:00:02]} 36. h3 {[%emt 0:00:05]} Bf4 {[%emt 0:00:29]} 37. c3 {[%emt 0:01:37]} dxc3 {[%emt 0:00:04]} 38. bxc3 {[%emt 0:00:01]} Nf6 {[%emt 0:01:57]} 39. Kc2 {[%emt 0:00:10]} Kf8 {[%emt 0:00:39]} 40. Kd3 {[%emt 0:00:34]} Ke7 {[%emt 0:00:08]} 41. Na1 {[%emt 0:01:26]} h5 {[%emt 0:00:18]} 42. Bf3 {[%emt 0:00:40]} hxg4 {[%emt 0:00:05]} 43. hxg4 {[%emt 0:00:01]} Nd7 {[%emt 0:00:11]} 44. Be2 {[%emt 0:00:48]} Ne5+ {[%emt 0:00:16]} 45. Ke4 {[%emt 0:00:13]} Kd6 {[%emt 0:00:26]} 46. a4 {[%emt 0:00:38]} Bd2 {[%emt 0:01:00]} 47. Nc2 {[%emt 0:00:03]} Bxc3 {[%emt 0:01:35]} 48. Ne3 {[%emt 0:00:01]} Nd7 {[%emt 0:00:16]} 49. Nd5 {[%emt 0:00:08]} Bf6 {[%emt 0:00:06]} 50. Bd1 {[%emt 0:00:21]} Bd8 {[%emt 0:00:24]} 51. Be2 {[%emt 0:00:08]} Ne5 {[%emt 0:00:22]} 52. Nc3 {[%emt 0:00:03]} 1/2-1/2

[Event "New York Summer IM-C 2022"]
[Site "New York"]
[Date "2022.07.08"]
[Round "2.5"]
[White "Bortnyk, Mykola"]
[Black "Le, Nguyen Khoi Nguyen"]
[Result "1-0"]
[ECO "D35"]
[WhiteElo "2463"]
[BlackElo "2001"]
[Annotator "RC"]
[PlyCount "55"]
[EventDate "2022.07.08"]
[EventType "tourn"]
[EventCountry "USA"]
[SourceTitle "playchess.com"]
[Source "ChessBase"]
[SourceQuality "1"]
[TimeControl "5400+30"]

1. d4 {[%emt 0:00:11]} Nf6 {[%emt 0:00:06]} 2. Nf3 {[%emt 0:00:07]} e6 {[%emt 0:00:12]} 3. c4 {[%emt 0:00:17]} d5 {[%emt 0:00:08]} 4. Nc3 {[%emt 0:00:22]} Be7 {[%emt 0:01:20]} 5. Bf4 {[%emt 0:01:35]} c6 {[%emt 0:06:49]} 6. e3 {[%emt 0:00:43]} O-O {[%emt 0:03:26]} 7. Qc2 {[%emt 0:02:47]} Nbd7 {[%emt 0:07:32]} 8. cxd5 {[%emt 0:01:27]} exd5 {[%emt 0:00:54]} 9. Bd3 {[%emt 0:00:25]} Re8 {[%emt 1:14:33]} 10. O-O {[%emt 0:07:48]} Nf8 {[%emt 0:00:00]} 11. Rab1 {[%emt 0:01:34]} Ng6 {[%emt 0:00:00]} 12. Bg3 {[%emt 0:00:45]} Bd6 {[%emt 0:00:00]} 13. b4 {[%emt 0:01:46]} Bxg3 {[%emt 0:00:00]} 14. hxg3 {[%emt 0:00:11]} Qd6 {[%emt 0:00:00]} 15. b5 {[%emt 0:00:37]} Bd7 {[%emt 0:00:00]} 16. Rfc1 {[%emt 0:01:36]} Rec8 {[%emt 0:00:00]} 17. bxc6 {[%emt 0:09:16]} Bxc6 {[%emt 0:00:00]} 18. Bf5 {[%emt 0:02:46]} Bd7 {[%emt 0:00:00]} 19. Bxg6 {[%emt 0:01:00]} hxg6 {[%emt 0:00:00]} 20. Rxb7 {[%emt 0:00:23]} Bf5 {[%emt 0:00:00]} 21. Qb2 {[%emt 0:07:50]} Rab8 {[%emt 0:00:00]} 22. Ne2 {[%emt 0:04:44]} Rxc1+ {[%emt 0:00:00]} 23. Nxc1 {[%emt 0:00:04]} Rc8 {[%emt 0:00:00]} 24. Ne5 {[%emt 0:02:51]} Ng4 {[%emt 0:02:26]} 25. Ncd3 {[%emt 0:04:26]} f6 {[%emt 0:02:50]} 26. Nxg4 {[%emt 0:01:04]} Bxd3 {[%emt 0:00:32]} 27. Rxa7 {[%emt 0:00:05]} Qc6 {[%emt 0:02:02]} 28. Qb4 {[%emt 0:02:05]} 1-0

[Event "New York Summer IM-C 2022"]
[Site "New York"]
[Date "2022.07.09"]
[Round "3.1"]
[White "Le, Nguyen Khoi Nguyen"]
[Black "Huston, Gus"]
[Result "0-1"]
[ECO "C88"]
[WhiteElo "2001"]
[BlackElo "2282"]
[Annotator "RC"]
[PlyCount "132"]
[EventDate "2022.07.08"]
[EventType "tourn"]
[EventCountry "USA"]
[SourceTitle "playchess.com"]
[Source "ChessBase"]
[SourceQuality "1"]
[TimeControl "5400+30"]

1. e4 {[%emt 0:00:03]} e5 {[%emt 0:00:08]} 2. Nf3 {[%emt 0:00:01]} Nc6 {[%emt 0:00:01]} 3. Bb5 {[%emt 0:00:01]} a6 {[%emt 0:00:14]} 4. Ba4 {[%emt 0:00:02]} Nf6 {[%emt 0:00:07]} 5. O-O {[%emt 0:00:03]} Be7 {[%emt 0:00:06]} 6. Re1 {[%emt 0:00:03]} b5 {[%emt 0:00:06]} 7. Bb3 {[%emt 0:00:02]} O-O {[%emt 0:00:09]} 8. a4 {[%emt 0:00:08]} Bb7 {[%emt 0:00:19]} 9. d3 {[%emt 0:06:26]} d6 {[%emt 0:00:17]} 10. Bd2 {[%emt 0:01:44]} Nd4 {[%emt 0:11:52]} 11. Nxd4 {[%emt 0:04:03]} exd4 {[%emt 0:00:02]} 12. Na3 {[%emt 0:04:20]} Qd7 {[%emt 0:02:37]} 13. c3 {[%emt 0:00:36]} dxc3 {[%emt 0:00:39]} 14. bxc3 {[%emt 0:00:58]} c5 {[%emt 0:00:57]} 15. Bc2 {[%emt 0:01:20]} Rfe8 {[%emt 0:05:38]} 16. d4 {[%emt 0:01:41]} d5 {[%emt 0:03:13]} 17. e5 {[%emt 0:01:41]} Ne4 {[%emt 0:00:09]} 18. f3 {[%emt 0:03:25]} Nxd2 {[%emt 0:00:46]} 19. Qxd2 {[%emt 0:00:02]} b4 {[%emt 0:02:42]} 20. cxb4 {[%emt 0:02:14]} cxb4 {[%emt 0:01:04]} 21. Nb1 {[%emt 0:02:37]} Rac8 {[%emt 0:06:44]} 22. Qd3 {[%emt 0:12:49]} g6 {[%emt 0:00:18]} 23. Bb3 {[%emt 0:00:15]} Rc7 {[%emt 0:11:51]} 24. Ra2 {[%emt 0:00:56]} Rec8 {[%emt 0:01:10]} 25. Rf2 {[%emt 0:01:22]} Rc1 {[%emt 0:05:32]} 26. Rff1 {[%emt 0:00:25]} Bg5 {[%emt 0:00:59]} 27. Rxc1 {[%emt 0:05:51]} Rxc1 {[%emt 0:02:37]} 28. Rxc1 {[%emt 0:00:29]} Bxc1 {[%emt 0:00:03]} 29. Kf2 {[%emt 0:03:13]} Bg5 {[%emt 0:01:27]} 30. Qc2 {[%emt 0:01:32]} Bc6 {[%emt 0:05:50]} 31. Nd2 {[%emt 0:02:57]} Qa7 {[%emt 0:00:47]} 32. Qd3 {[%emt 0:01:37]} Bf4 {[%emt 0:03:07]} 33. Ke2 {[%emt 0:05:21]} a5 {[%emt 0:09:22]} 34. g3 {[%emt 0:01:16]} Bb7 {[%emt 0:04:39]} 35. Bxd5 {[%emt 0:04:56]} Bxd5 {[%emt 0:01:12]} 36. gxf4 {[%emt 0:00:09]} Qb6 {[%emt 0:00:26]} 37. Ke3 {[%emt 0:11:21]} Qc6 {[%emt 0:05:38]} 38. Qb5 {[%emt 0:05:52]} Qxb5 {[%emt 0:03:11]} 39. axb5 {[%emt 0:00:05]} a4 {[%emt 0:00:08]} 40. Kd3 {[%emt 0:07:39]} Kf8 {[%emt 0:02:16]} 41. b6 {[%emt 0:06:22]} a3 {[%emt 0:02:51]} 42. Kc2 {[%emt 0:00:20]} Ke7 {[%emt 0:02:24]} 43. Nb3 {[%emt 0:02:39]} Bxf3 {[%emt 0:02:53]} 44. Nc5 {[%emt 0:00:29]} Kd8 {[%emt 0:00:15]} 45. b7 {[%emt 0:01:34]} Kc7 {[%emt 0:00:02]} 46. Na6+ {[%emt 0:00:08]} Kxb7 {[%emt 0:00:06]} 47. Nxb4 {[%emt 0:00:05]} Kb6 {[%emt 0:01:10]} 48. Kb3 {[%emt 0:01:25]} Kb5 {[%emt 0:00:21]} 49. Kxa3 {[%emt 0:01:37]} Kc4 {[%emt 0:00:02]} 50. Na6 {[%emt 0:00:44]} Kxd4 {[%emt 0:00:12]} 51. Nc7 {[%emt 0:00:24]} Bg4 {[%emt 0:01:12]} 52. Kb4 {[%emt 0:00:34]} Bd7 {[%emt 0:01:10]} 53. Na6 {[%emt 0:00:33]} h5 {[%emt 0:00:57]} 54. h4 {[%emt 0:00:00]} Ke3 {[%emt 0:01:45]} 55. Kc5 {[%emt 0:00:01]} Kxf4 {[%emt 0:00:11]} 56. Kd6 {[%emt 0:00:01]} Be6 {[%emt 0:00:19]} 57. Nc5 {[%emt 0:00:26]} Ba2 {[%emt 0:00:21]} 58. Nb7 {[%emt 0:01:20]} Kf5 {[%emt 0:00:40]} 59. Nd8 {[%emt 0:00:11]} Bb3 {[%emt 0:00:26]} 60. Nc6 {[%emt 0:00:34]} Kg4 {[%emt 0:01:28]} 61. Ke7 {[%emt 0:00:12]} Kxh4 {[%emt 0:00:06]} 62. Nd8 {[%emt 0:00:06]} g5 {[%emt 0:00:19]} 63. Nxf7 {[%emt 0:00:06]} g4 {[%emt 0:00:15]} 64. Kf6 {[%emt 0:01:08]} g3 {[%emt 0:00:18]} 65. Ng5 {[%emt 0:00:10]} Kg4 {[%emt 0:00:33]} 66. Ne4 {[%emt 0:00:13]} g2 {[%emt 0:00:18]} 0-1

[Event "New York Summer IM-C 2022"]
[Site "New York"]
[Date "2022.07.09"]
[Round "3.2"]
[White "Hardaway, Brewington"]
[Black "Bortnyk, Mykola"]
[Result "1-0"]
[ECO "B08"]
[WhiteElo "2175"]
[BlackElo "2463"]
[Annotator "RC"]
[PlyCount "157"]
[EventDate "2022.07.08"]
[EventType "tourn"]
[EventCountry "USA"]
[SourceTitle "playchess.com"]
[Source "ChessBase"]
[SourceQuality "1"]
[TimeControl "5400+30"]

1. e4 {[%emt 0:00:01]} Nc6 {[%emt 0:01:13]} 2. Nf3 {[%emt 0:01:02]} d6 {[%emt 0:00:25]} 3. d4 {[%emt 0:00:06]} Nf6 {[%emt 0:00:06]} 4. Nc3 {[%emt 0:00:04]} g6 {[%emt 0:00:16]} 5. Be2 {[%emt 0:00:05]} Bg7 {[%emt 0:00:12]} 6. O-O {[%emt 0:00:06]} O-O {[%emt 0:00:27]} 7. h3 {[%emt 0:00:05]} e5 {[%emt 0:01:47]} 8. dxe5 {[%emt 0:00:24]} Nxe5 {[%emt 0:02:38]} 9. Nxe5 {[%emt 0:04:54]} dxe5 {[%emt 0:00:05]} 10. Qxd8 {[%emt 0:00:07]} Rxd8 {[%emt 0:00:08]} 11. Bg5 {[%emt 0:00:05]} c6 {[%emt 0:01:55]} 12. Rad1 {[%emt 0:06:41]} Rxd1 {[%emt 0:04:27]} 13. Rxd1 {[%emt 0:00:02]} Be6 {[%emt 0:00:02]} 14. a3 {[%emt 0:16:00]} h6 {[%emt 0:05:22]} 15. Be3 {[%emt 0:01:59]} Bf8 {[%emt 0:00:12]} 16. Bf1 {[%emt 0:15:39]} b5 {[%emt 0:00:58]} 17. f3 {[%emt 0:02:07]} Nd7 {[%emt 0:04:36]} 18. a4 {[%emt 0:17:00]} a6 {[%emt 0:05:32]} 19. axb5 {[%emt 0:03:18]} axb5 {[%emt 0:00:42]} 20. Ne2 {[%emt 0:01:02]} Ra2 {[%emt 0:05:14]} 21. Rb1 {[%emt 0:00:15]} f6 {[%emt 0:00:37]} 22. Kf2 {[%emt 0:01:18]} Kf7 {[%emt 0:00:12]} 23. Nc1 {[%emt 0:02:19]} Ra8 {[%emt 0:00:11]} 24. Ne2 {[%emt 0:08:01]} h5 {[%emt 0:00:34]} 25. g4 {[%emt 0:04:25]} h4 {[%emt 0:01:05]} 26. Nc1 {[%emt 0:03:17]} g5 {[%emt 0:00:33]} 27. c3 {[%emt 0:03:32]} Bd6 {[%emt 0:00:51]} 28. Be2 {[%emt 0:01:30]} Ke7 {[%emt 0:00:15]} 29. Ke1 {[%emt 0:03:53]} Bf7 {[%emt 0:00:29]} 30. Kd2 {[%emt 0:00:18]} Nc5 {[%emt 0:00:48]} 31. Kc2 {[%emt 0:01:00]} Ne6 {[%emt 0:00:47]} 32. Bf1 {[%emt 0:01:33]} b4 {[%emt 0:02:03]} 33. Nb3 {[%emt 0:01:21]} Ra4 {[%emt 0:04:55]} 34. Bg1 {[%emt 0:02:56]} Ra2 {[%emt 0:05:08]} 35. Nc1 {[%emt 0:00:08]} Ra8 {[%emt 0:00:47]} 36. Nb3 {[%emt 0:00:44]} Rb8 {[%emt 0:00:01]} 37. Ra1 {[%emt 0:01:08]} Rb7 {[%emt 0:01:38]} 38. Na5 {[%emt 0:00:19]} Rc7 {[%emt 0:00:59]} 39. Bb6 {[%emt 0:00:10]} Rc8 {[%emt 0:02:11]} 40. Ba6 {[%emt 0:00:08]} b3+ {[%emt 0:00:01]} 41. Kd2 {[%emt 0:01:24]} Ra8 {[%emt 0:01:02]} 42. Bb7 {[%emt 0:00:04]} Rh8 {[%emt 0:00:15]} 43. Nxc6+ {[%emt 0:00:48]} Kd7 {[%emt 0:00:01]} 44. Ra7 {[%emt 0:00:38]} Bc7 {[%emt 0:00:43]} 45. Nb4 {[%emt 0:00:31]} Kd6 {[%emt 0:04:08]} 46. Be3 {[%emt 0:00:24]} Nf4 {[%emt 0:02:00]} 47. Ra6+ {[%emt 0:00:16]} Kd7 {[%emt 0:01:09]} 48. Bxf4 {[%emt 0:00:05]} exf4 {[%emt 0:00:09]} 49. Bd5 {[%emt 0:00:22]} Bxd5 {[%emt 0:00:22]} 50. Nxd5 {[%emt 0:00:01]} Be5 {[%emt 0:00:01]} 51. Kd3 {[%emt 0:00:47]} Rb8 {[%emt 0:00:25]} 52. Kc4 {[%emt 0:00:13]} Ke8 {[%emt 0:00:47]} 53. Ra7 {[%emt 0:01:00]} Kf8 {[%emt 0:00:11]} 54. Ra6 {[%emt 0:01:06]} Kf7 {[%emt 0:00:05]} 55. Ra7+ {[%emt 0:00:02]} Ke6 {[%emt 0:00:14]} 56. Nb4 {[%emt 0:00:37]} Bd6 {[%emt 0:00:14]} 57. Nd3 {[%emt 0:00:45]} Be7 {[%emt 0:00:10]} 58. Ra1 {[%emt 0:00:38]} Bd6 {[%emt 0:00:09]} 59. Nc1 {[%emt 0:00:16]} Rd8 {[%emt 0:00:55]} 60. Kxb3 {[%emt 0:00:21]} Bc5 {[%emt 0:00:18]} 61. Kc2 {[%emt 0:00:02]} Be3 {[%emt 0:00:33]} 62. Nd3 {[%emt 0:00:01]} Ke7 {[%emt 0:00:00]} 63. Ra6 {[%emt 0:00:47]} Rd7 {[%emt 0:00:02]} 64. Ra5 {[%emt 0:00:34]} Ke6 {[%emt 0:00:08]} 65. Ra1 {[%emt 0:00:59]} Rd8 {[%emt 0:00:01]} 66. Rd1 {[%emt 0:00:10]} Ra8 {[%emt 0:00:04]} 67. Nb4 {[%emt 0:00:44]} Bc5 {[%emt 0:00:02]} 68. Nd5 {[%emt 0:00:15]} Ra7 {[%emt 0:00:00]} 69. Rb1 {[%emt 0:00:46]} Ke5 {[%emt 0:00:06]} 70. b4 {[%emt 0:00:20]} Bf2 {[%emt 0:00:02]} 71. Kb2 {[%emt 0:00:08]} f5 {[%emt 0:00:04]} 72. gxf5 {[%emt 0:00:19]} g4 {[%emt 0:00:01]} 73. hxg4 {[%emt 0:01:17]} h3 {[%emt 0:00:02]} 74. Rh1 {[%emt 0:00:03]} Rh7 {[%emt 0:00:05]} 75. g5 {[%emt 0:00:02]} Rh5 {[%emt 0:01:27]} 76. Nf6 {[%emt 0:01:33]} Rxg5 {[%emt 0:00:17]} 77. Ng4+ {[%emt 0:00:01]} Rxg4 {[%emt 0:00:07]} 78. fxg4 {[%emt 0:00:02]} Kxe4 {[%emt 0:00:07]} 79. f6 {[%emt 0:00:10]} 1-0

[Event "New York Summer IM-C 2022"]
[Site "New York"]
[Date "2022.07.09"]
[Round "3.3"]
[White "Adewumi, Tanitoluwa"]
[Black "Poliannikov, Danila"]
[Result "1-0"]
[ECO "A65"]
[WhiteElo "2309"]
[BlackElo "2309"]
[Annotator "RC"]
[PlyCount "87"]
[EventDate "2022.07.08"]
[EventType "tourn"]
[EventCountry "USA"]
[SourceTitle "playchess.com"]
[Source "ChessBase"]
[SourceQuality "1"]
[TimeControl "5400+30"]

1. d4 {[%emt 0:00:04]} Nf6 {[%emt 0:00:03]} 2. c4 {[%emt 0:00:10]} c5 {[%emt 0:00:02]} 3. d5 {[%emt 0:00:05]} e6 {[%emt 0:00:03]} 4. Nc3 {[%emt 0:00:07]} exd5 {[%emt 0:00:02]} 5. cxd5 {[%emt 0:00:14]} d6 {[%emt 0:00:01]} 6. e4 {[%emt 0:00:08]} g6 {[%emt 0:00:02]} 7. Be2 {[%emt 0:00:05]} Bg7 {[%emt 0:00:03]} 8. Be3 {[%emt 0:00:06]} Qe7 {[%emt 0:00:14]} 9. f3 {[%emt 0:07:55]} Na6 {[%emt 0:01:31]} 10. Qd2 {[%emt 0:01:10]} O-O {[%emt 0:03:30]} 11. h4 {[%emt 0:08:16]} Nh5 {[%emt 0:13:49]} 12. Bf2 {[%emt 0:06:38]} f5 {[%emt 0:04:36]} 13. exf5 {[%emt 0:04:49]} gxf5 {[%emt 0:01:14]} 14. O-O-O {[%emt 0:01:48]} Nc7 {[%emt 0:05:22]} 15. Nh3 {[%emt 0:02:08]} b5 {[%emt 0:04:15]} 16. Bxc5 {[%emt 0:04:45]} Rd8 {[%emt 0:44:24]} 17. Bd4 {[%emt 0:02:10]} b4 {[%emt 0:00:33]} 18. Bxg7 {[%emt 0:03:10]} Qxg7 {[%emt 0:03:07]} 19. Nb5 {[%emt 0:01:11]} Ng3 {[%emt 0:03:15]} 20. Nxc7 {[%emt 0:00:30]} Qxc7+ {[%emt 0:00:32]} 21. Kb1 {[%emt 0:00:07]} Nxh1 {[%emt 0:00:09]} 22. Rxh1 {[%emt 0:00:22]} Qe7 {[%emt 0:02:41]} 23. Bd3 {[%emt 0:00:18]} a5 {[%emt 0:02:49]} 24. Nf4 {[%emt 0:00:41]} Bd7 {[%emt 0:00:40]} 25. Nh5 {[%emt 0:03:37]} Qf7 {[%emt 0:04:12]} 26. g4 {[%emt 0:04:59]} fxg4 {[%emt 0:02:43]} 27. fxg4 {[%emt 0:00:48]} Kh8 {[%emt 0:01:24]} 28. Qh6 {[%emt 0:28:17]} Bxg4 {[%emt 0:00:05]} 29. Nf6 {[%emt 0:01:22]} Bf3 {[%emt 0:02:58]} 30. Rf1 {[%emt 0:00:40]} Qg7 {[%emt 0:00:25]} 31. Qxg7+ {[%emt 0:07:55]} Kxg7 {[%emt 0:00:01]} 32. Rxf3 {[%emt 0:00:30]} Rf8 {[%emt 0:00:02]} 33. Nh5+ {[%emt 0:00:36]} Kh6 {[%emt 0:00:01]} 34. Rxf8 {[%emt 0:01:36]} Rxf8 {[%emt 0:00:01]} 35. Ng3 {[%emt 0:00:23]} Rf3 {[%emt 0:00:47]} 36. Nf5+ {[%emt 0:00:13]} Kg6 {[%emt 0:00:18]} 37. Kc2 {[%emt 0:00:10]} Rxf5 {[%emt 0:02:26]} 38. Kb3 {[%emt 0:00:35]} Kf6 {[%emt 0:00:01]} 39. Bxf5 {[%emt 0:00:26]} Kxf5 {[%emt 0:00:01]} 40. Ka4 {[%emt 0:00:18]} Kg4 {[%emt 0:00:02]} 41. Kb5 {[%emt 0:03:19]} Kxh4 {[%emt 0:00:27]} 42. Kc6 {[%emt 0:00:07]} h5 {[%emt 0:00:47]} 43. Kxd6 {[%emt 0:00:07]} Kg4 {[%emt 0:01:20]} 44. Ke5 {[%emt 0:00:15]} 1-0

[Event "New York Summer IM-C 2022"]
[Site "New York"]
[Date "2022.07.09"]
[Round "3.4"]
[White "Nakada, Akira"]
[Black "Rozman, Levy"]
[Result "1-0"]
[ECO "A28"]
[WhiteElo "2297"]
[BlackElo "2333"]
[Annotator "RC"]
[PlyCount "55"]
[EventDate "2022.07.08"]
[EventType "tourn"]
[EventCountry "USA"]
[SourceTitle "playchess.com"]
[Source "ChessBase"]
[SourceQuality "1"]
[TimeControl "5400+30"]

1. c4 {[%emt 0:00:14]} e5 {[%emt 0:01:08]} 2. Nc3 {[%emt 0:00:54]} Nf6 {[%emt 0:00:15]} 3. Nf3 {[%emt 0:00:13]} Nc6 {[%emt 0:00:06]} 4. e4 {[%emt 0:00:40]} Bb4 {[%emt 0:00:37]} 5. d3 {[%emt 0:00:23]} d6 {[%emt 0:00:31]} 6. a3 {[%emt 0:00:06]} Bxc3+ {[%emt 0:00:38]} 7. bxc3 {[%emt 0:00:06]} h6 {[%emt 0:01:26]} 8. g3 {[%emt 0:00:11]} O-O {[%emt 0:06:36]} 9. Bg2 {[%emt 0:00:06]} Ne7 {[%emt 0:00:54]} 10. O-O {[%emt 0:01:22]} Ng6 {[%emt 1:23:19]} 11. Ne1 {[%emt 0:01:17]} c6 {[%emt 0:00:00]} 12. Nc2 {[%emt 0:00:45]} Bd7 {[%emt 0:00:00]} 13. a4 {[%emt 0:03:36]} Qc8 {[%emt 0:00:00]} 14. Ba3 {[%emt 0:06:52]} Rd8 {[%emt 0:00:00]} 15. f4 {[%emt 0:07:20]} exf4 {[%emt 0:00:00]} 16. gxf4 {[%emt 0:00:04]} Bh3 {[%emt 0:00:00]} 17. Qf3 {[%emt 0:10:32]} Bg4 {[%emt 0:00:00]} 18. Qf2 {[%emt 0:00:53]} d5 {[%emt 0:00:00]} 19. f5 {[%emt 0:05:02]} Ne5 {[%emt 0:00:00]} 20. Qg3 {[%emt 0:00:59]} Re8 {[%emt 0:00:00]} 21. d4 {[%emt 0:02:15]} Nxc4 {[%emt 0:00:00]} 22. e5 {[%emt 0:01:55]} Bxf5 {[%emt 0:00:00]} 23. exf6 {[%emt 0:00:10]} g5 {[%emt 0:00:00]} 24. Bc1 {[%emt 0:31:28]} Kh7 {[%emt 0:00:00]} 25. Ne3 {[%emt 0:01:44]} Nxe3 {[%emt 0:00:00]} 26. Bxe3 {[%emt 0:00:06]} Be4 {[%emt 0:00:00]} 27. Bh3 {[%emt 0:00:44]} Qb8 {[%emt 0:00:00]} 28. Bf4 {[%emt 0:00:22]} 1-0

[Event "New York Summer IM-C 2022"]
[Site "New York"]
[Date "2022.07.09"]
[Round "3.5"]
[White "Martin Del Campo Cardenas, Roberto Abel"]
[Black "Asavasaetakul, Chawit"]
[Result "1/2-1/2"]
[ECO "B13"]
[WhiteElo "2245"]
[BlackElo "1948"]
[Annotator "RC"]
[PlyCount "28"]
[EventDate "2022.07.08"]
[EventType "tourn"]
[EventCountry "USA"]
[SourceTitle "playchess.com"]
[Source "ChessBase"]
[SourceQuality "1"]
[TimeControl "5400+30"]

1. e4 {[%emt 0:00:03]} c6 {[%emt 0:00:15]} 2. d4 {[%emt 0:01:07]} d5 {[%emt 0:00:11]} 3. exd5 {[%emt 0:00:07]} cxd5 {[%emt 0:00:04]} 4. c4 {[%emt 0:00:02]} Nf6 {[%emt 0:00:05]} 5. Nc3 {[%emt 0:00:05]} Nc6 {[%emt 0:00:04]} 6. Nf3 {[%emt 0:00:41]} Bg4 {[%emt 0:00:06]} 7. cxd5 {[%emt 0:00:26]} Nxd5 {[%emt 0:00:05]} 8. Qb3 {[%emt 0:00:26]} Bxf3 {[%emt 0:00:12]} 9. gxf3 {[%emt 0:00:04]} e6 {[%emt 0:00:28]} 10. Qxb7 {[%emt 0:00:41]} Nxd4 {[%emt 0:00:20]} 11. Bb5+ {[%emt 0:00:07]} Nxb5 {[%emt 0:00:08]} 12. Qc6+ {[%emt 0:00:06]} Ke7 {[%emt 0:00:09]} 13. Qxb5 {[%emt 0:00:03]} Qd7 {[%emt 0:00:17]} 14. Nxd5+ {[%emt 0:00:14]} Qxd5 {[%emt 0:00:08]} 1/2-1/2